[Event "1st Bangalore GM-Open-A 2024"]
[Site "Bangalore"]
[Date "2024.01.23"]
[Round "7.32"]
[White "Nayak Rajesh"]
[Black "Thilakarathne, G M H"]
[Result "0-1"]
[ECO "C00"]
[WhiteElo "2170"]
[BlackElo "2391"]
[Annotator "TA"]
[PlyCount "68"]
[EventDate "2024.01.20"]
[EventType "swiss"]
[EventCountry "IND"]
[SourceTitle "playchess.com"]
[Source "ChessBase"]
[SourceQuality "1"]
[TimeControl "5400+30"]

{[%evp 9,68,-15,14,5,-2,-11,-8,-21,-4,-18,-17,-35,-26,-39,29,-17,-30,-73,-58,-217,-225,-214,-214,-208,-116,-162,-138,-314,-311,-317,-289,-348,-355,-391,-392,-464,-453,-461,-452,-870,-898,-893,-877,-853,-870,-1035,-983,-1256,-1329,-1312,-1244,-1505,-1487,-1316,-695,-29991,-29992,-29992,-29993,-29994,-29995]} 1. e4 {[%emt 0:00:04]} e6 {[%emt 0:00:01]} 2. Qe2 {[%emt 0:04:59]} c5 {[%emt 0:06:41]} 3. Nf3 {[%emt 0:00:30]} Nc6 {[%emt 0:00:04]} 4. g3 {[%emt 0:00:23]} g5 {[%emt 0:06:16]} 5. h3 {[%emt 0:01:37]} Bg7 {[%emt 0:03:25]} 6. d3 {[%emt 0:02:03]} h6 {[%emt 0:00:19] OK} 7. Bg2 {[%emt 0:02:30]} Nge7 {[%emt 0:00:26] OK} 8. c3 {[%emt 0:05:19] The position is equal.} d5 {[%emt 0:04:29]} 9. O-O {[%emt 0:02:22]} b6 {[%emt 0:03:20] OK} 10. Re1 {[%emt 0:00:43] OK} Ba6 {[%emt 0:02:54]} 11. exd5 {[%emt 0:02:59] OK} Nxd5 {[%emt 0:03:02] Mistake (0.7)} ({Black should play} 11... Qxd5 $15 12. Nd4 (12. Nxg5 Qxd3 13. Qxd3 Bxd3 $15) 12... Qd6 13. Nxc6 Nxc6) 12. c4 {[%emt 0:06:19] Mistake (0.5)} (12. Nbd2 {is superior.}) 12... Nde7 $11 {[%emt 0:02:23] OK} 13. Nc3 {[%emt 0:00:47] Inaccurate} Qd7 {[%emt 0:01:07] OK} 14. Nd5 $2 {[%emt 0:05:32] Mistake (1.6)} exd5 $19 {[%emt 0:05:37] OK} 15. cxd5 {[%emt 0:00:11]} Nb4 {[%emt 0:13:06] OK} ({Much less strong is} 15... Qxd5 16. Nxg5 (16. Nd4 Qxg2+ 17. Kxg2 Bxd4 $17) 16... Qe5 17. Bxc6+ Nxc6 18. Qd1 hxg5 19. Rxe5+ Bxe5 20. Qf3 $17) 16. Ne5 {[%emt 0:11:04] [#] OK} Qd6 {[%emt 0:03:52] Mistake (0.9)} ({Black should try} 16... Bxe5 $1 $19 17. Qxe5 O-O-O 18. Qxe7 Nc2 19. Qxd7+ Kxd7) 17. a3 {[%emt 0:01:00] Mistake (0.5)} (17. Nc4 $17 {keeps fighting.} Bxc4 18. dxc4) 17... Nbxd5 {[%emt 0:17:15] aiming for ...0-0.} ({Avoid the trap} 17... Qxe5 $2 18. Qxe5 Bxe5 19. axb4 Bxd3 20. d6 (20. Rxe5 Kd7 $18) 20... Bxd6 21. Bxa8 $18) 18. Nc6 $2 {[%emt 0:14:30] Loses game (1.8)} (18. Nc4 $17 {only move.} Qe6 19. Bxd5 Qxe2 (19... Nxd5 20. Qd1 $16) 20. Rxe2) 18... Kd7 {[%emt 0:02:47] Best (Easy)} (18... Qxc6 19. Qxe7+ Nxe7 20. Bxc6+ Kd8 21. Bxa8 $16) 19. Nxe7 {[%emt 0:01:20] OK} Nxe7 {[%emt 0:00:23]} 20. Bxa8 {[%emt 0:04:13]} Rxa8 {[%emt 0:00:10]} 21. Qf3 {[%emt 0:00:07]} Rf8 {[%emt 0:04:31][%cal Od7c7] OK} (21... Qxd3 $2 {loses.} 22. Qxa8 (22. Rd1 Qxd1+ 23. Qxd1+ Kc7 $18) 22... Nc8 23. Bxg5 hxg5 24. Rad1 $18) 22. d4 {[%emt 0:00:03]} Bxd4 {[%emt 0:04:40] OK} (22... cxd4 23. Bd2 Rc8 24. Bb4 $15) 23. h4 {[%emt 0:00:02]} f6 {[%emt 0:01:38] And now ...Kc7 would win. OK} 24. hxg5 {[%emt 0:00:09] Mistake (4.2)} (24. Be3 $142) 24... fxg5 {[%emt 0:00:29]} 25. Qg4+ {[%emt 0:00:43] OK} Nf5 {[%emt 0:02:18]} 26. Be3 {[%emt 0:00:09]} Kc7 {[%emt 0:00:37] ...Nxe3 would now be deadly.} 27. Rad1 {[%emt 0:00:13]} Bb7 {[%emt 0:00:14] White must now prevent ...Qd5.} 28. Qh3 {[%emt 0:03:36]} Nxe3 {[%emt 0:01:42]} 29. Rxe3 {[%emt 0:00:18]} Qf6 {[%emt 0:00:52]} 30. Re2 {[%emt 0:00:57]} Bxf2+ {[%emt 0:02:12]} (30... Bxb2 $2 31. Qd7+ Kb8 32. Rxb2 $19) 31. Kh2 {[%emt 0:00:04]} Bd4 {[%emt 0:00:08][%cal Of6f2] ( -> ...Qf2+!)} 32. Rde1 {[%emt 0:00:07] [#]} Qf2+ $3 {[%emt 0:01:08][%mdl 512] Black mates.} 33. Rxf2 {[%emt 0:00:08]} Rxf2+ {[%emt 0:00:01]} 34. Kg1 {[%emt 0:00:02]} Rxb2+ {[%emt 0:00:17] Weighted Error Value: White=0.96/Black=0.33.  Loses game:     	White=1     	---        Mistake:       	White=4     	Black=2      Inaccurate:     	White=1     	---        OK:         	White=5     	Black=10     Best:        	---       	Black=1} 0-1

[Event "1st Bangalore GM-Open-A 2024"]
[Site "Bangalore"]
[Date "2024.01.23"]
[Round "7.33"]
[White "Nitin, S.."]
[Black "Sharma Isha"]
[Result "1-0"]
[ECO "A11"]
[WhiteElo "2385"]
[BlackElo "2183"]
[Annotator "RC"]
[PlyCount "73"]
[EventDate "2024.01.20"]
[EventType "swiss"]
[EventCountry "IND"]
[SourceTitle "playchess.com"]
[Source "ChessBase"]
[SourceQuality "1"]
[TimeControl "5400+30"]

1. Nf3 {[%emt 0:00:35]} d5 {[%emt 0:00:11]} 2. g3 {[%emt 0:00:14]} Nf6 {[%emt 0:00:05]} 3. Bg2 {[%emt 0:00:11]} c6 {[%emt 0:00:27]} 4. c4 {[%emt 0:03:18]} Bf5 {[%emt 0:01:01]} 5. O-O {[%emt 0:00:31]} e6 {[%emt 0:00:37]} 6. d3 {[%emt 0:00:55]} h6 {[%emt 0:00:58]} 7. cxd5 {[%emt 0:00:49]} exd5 {[%emt 0:02:02]} 8. Qb3 {[%emt 0:02:56]} Qb6 {[%emt 0:01:23]} 9. Qc2 {[%emt 0:00:07]} Nbd7 {[%emt 0:01:39]} 10. e4 {[%emt 0:08:37]} dxe4 {[%emt 0:13:37]} 11. dxe4 {[%emt 0:01:06]} Bh7 {[%emt 0:00:14]} 12. Nbd2 {[%emt 0:03:54]} Be7 {[%emt 0:01:36]} 13. Nc4 {[%emt 0:01:15]} Qc5 {[%emt 0:06:23]} 14. b4 {[%emt 0:07:07]} Qh5 {[%emt 0:05:49]} 15. Nh4 {[%emt 0:05:13]} O-O {[%emt 0:02:33]} 16. Nf5 {[%emt 0:20:38]} Bxf5 {[%emt 0:05:46]} 17. exf5 {[%emt 0:00:56]} Nb6 {[%emt 0:07:31]} 18. Ne5 {[%emt 0:04:56]} Bxb4 {[%emt 0:15:47]} 19. h3 {[%emt 0:03:22]} Bd6 {[%emt 0:07:39]} 20. f4 {[%emt 0:08:43]} Nfd7 {[%emt 0:12:04]} 21. Bb2 {[%emt 0:06:50]} Rfd8 {[%emt 0:06:39]} 22. Rae1 {[%emt 0:06:56]} Nxe5 {[%emt 0:01:23]} 23. fxe5 {[%emt 0:00:07]} Bb4 {[%emt 0:00:07]} 24. Re2 {[%emt 0:00:08]} Qg5 {[%emt 0:00:46]} 25. Qb3 {[%emt 0:04:35]} Rd2 {[%emt 0:04:04]} 26. Bc1 {[%emt 0:03:41]} Bc5+ {[%emt 0:01:17]} 27. Kh1 {[%emt 0:00:22]} Rxe2 {[%emt 0:00:34]} 28. Bxg5 {[%emt 0:00:04]} hxg5 {[%emt 0:00:03]} 29. Qc3 {[%emt 0:01:00]} Bf8 {[%emt 0:01:30]} 30. f6 {[%emt 0:00:51]} g6 {[%emt 0:00:48]} 31. Bf3 {[%emt 0:00:14]} Nd5 {[%emt 0:00:44]} 32. Qd4 {[%emt 0:00:31]} Rc2 {[%emt 0:00:28]} 33. e6 {[%emt 0:01:26]} Bc5 {[%emt 0:00:36]} 34. exf7+ {[%emt 0:00:50]} Kxf7 {[%emt 0:00:16]} 35. Bxd5+ {[%emt 0:00:16]} cxd5 {[%emt 0:00:06]} 36. Qxd5+ {[%emt 0:00:03]} Kf8 {[%emt 0:00:06]} 37. Qxb7 {[%emt 0:00:16]} 1-0

[Event "1st Bangalore GM-Open-A 2024"]
[Site "Bangalore"]
[Date "2024.01.23"]
[Round "7.34"]
[White "Rajarishi Karthi"]
[Black "Thejkumar, M. S."]
[Result "1-0"]
[ECO "A57"]
[WhiteElo "2183"]
[BlackElo "2372"]
[Annotator "RC"]
[PlyCount "75"]
[EventDate "2024.01.20"]
[EventType "swiss"]
[EventCountry "IND"]
[SourceTitle "playchess.com"]
[Source "ChessBase"]
[SourceQuality "1"]
[TimeControl "5400+30"]

1. d4 {[%emt 0:01:18]} Nf6 {[%emt 0:00:44]} 2. c4 {[%emt 0:00:30]} c5 {[%emt 0:00:33]} 3. d5 {[%emt 0:00:12]} b5 {[%emt 0:00:12]} 4. Qc2 {[%emt 0:00:23]} bxc4 {[%emt 0:01:00]} 5. e4 {[%emt 0:00:26]} e6 {[%emt 0:00:07]} 6. Bxc4 {[%emt 0:00:30]} exd5 {[%emt 0:00:13]} 7. exd5 {[%emt 0:00:19]} d6 {[%emt 0:00:15]} 8. Ne2 {[%emt 0:01:29]} Be7 {[%emt 0:00:43]} 9. O-O {[%emt 0:00:35]} O-O {[%emt 0:00:05]} 10. Ng3 {[%emt 0:02:09]} Nbd7 {[%emt 0:04:37]} 11. Nc3 {[%emt 0:02:36]} Nb6 {[%emt 0:00:48]} 12. b3 {[%emt 0:00:17]} Nxc4 {[%emt 0:06:51]} 13. bxc4 {[%emt 0:00:27]} Ng4 {[%emt 0:00:31]} 14. Bb2 {[%emt 0:03:32]} Rb8 {[%emt 0:08:37]} 15. Rab1 {[%emt 0:09:07]} f5 {[%emt 0:11:49]} 16. Nh5 {[%emt 0:04:33]} Ne5 {[%emt 0:08:47]} 17. Nb5 {[%emt 0:07:41]} f4 {[%emt 0:03:18]} 18. Rbe1 {[%emt 0:19:34]} Rf5 {[%emt 0:09:27]} 19. Nxa7 {[%emt 0:05:27]} Rxh5 {[%emt 0:13:50]} 20. Bxe5 {[%emt 0:00:27]} dxe5 {[%emt 0:00:05]} 21. Nc6 {[%emt 0:00:09]} Qc7 {[%emt 0:00:16]} 22. Nxb8 {[%emt 0:00:10]} Qxb8 {[%emt 0:00:04]} 23. Rb1 {[%emt 0:02:24]} Qd6 {[%emt 0:02:48]} 24. Qa4 {[%emt 0:00:36]} Kf7 {[%emt 0:00:38]} 25. Qa7 {[%emt 0:00:38]} Rh6 {[%emt 0:01:32]} 26. Rfe1 {[%emt 0:03:43]} f3 {[%emt 0:03:58]} 27. Rb3 {[%emt 0:02:17]} e4 {[%emt 0:00:47]} 28. g3 {[%emt 0:00:45]} Qg6 {[%emt 0:01:01]} 29. Rxf3+ {[%emt 0:00:37]} Ke8 {[%emt 0:01:36]} 30. Rf4 {[%emt 0:03:33]} e3 {[%emt 0:05:17]} 31. Qb8 {[%emt 0:00:27]} Kd8 {[%emt 0:04:13]} 32. Rxe3 {[%emt 0:01:37]} Qd6 {[%emt 0:02:58]} 33. Qb5 {[%emt 0:00:51]} Qb6 {[%emt 0:01:33]} 34. Rf7 {[%emt 0:01:27]} Qxb5 {[%emt 0:01:02]} 35. cxb5 {[%emt 0:00:05]} Bf6 {[%emt 0:01:23]} 36. b6 {[%emt 0:00:55]} Bd4 {[%emt 0:00:46]} 37. Rb3 {[%emt 0:01:39]} c4 {[%emt 0:01:36]} 38. b7 {[%emt 0:00:10]} 1-0

[Event "1st Bangalore GM-Open-A 2024"]
[Site "Bangalore"]
[Date "2024.01.23"]
[Round "7.35"]
[White "Aquino, Jethro Dino"]
[Black "Aswath, S."]
[Result "0-1"]
[ECO "B90"]
[WhiteElo "2166"]
[BlackElo "2369"]
[Annotator "RC"]
[PlyCount "106"]
[EventDate "2024.01.20"]
[EventType "swiss"]
[EventCountry "IND"]
[SourceTitle "playchess.com"]
[Source "ChessBase"]
[SourceQuality "1"]
[TimeControl "5400+30"]

1. e4 {[%emt 0:03:29]} c5 {[%emt 0:03:45]} 2. Nf3 {[%emt 0:00:00]} d6 {[%emt 0:00:09]} 3. d4 {[%emt 0:00:00]} cxd4 {[%emt 0:00:06]} 4. Nxd4 {[%emt 0:00:00]} Nf6 {[%emt 0:00:07]} 5. Nc3 {[%emt 0:00:00]} a6 {[%emt 0:00:13]} 6. f3 {[%emt 0:00:06]} e5 {[%emt 0:00:14]} 7. Nb3 {[%emt 0:00:06]} Be7 {[%emt 0:00:07]} 8. Be3 {[%emt 0:00:30]} Be6 {[%emt 0:00:09]} 9. Qd2 {[%emt 0:00:26]} h5 {[%emt 0:00:11]} 10. Nd5 {[%emt 0:02:47]} Nxd5 {[%emt 0:00:40]} 11. exd5 {[%emt 0:00:07]} Bf5 {[%emt 0:00:06]} 12. Be2 {[%emt 0:01:40]} a5 {[%emt 0:00:07]} 13. a4 {[%emt 0:03:05]} Nd7 {[%emt 0:00:07]} 14. c4 {[%emt 0:01:23]} O-O {[%emt 0:05:12]} 15. O-O {[%emt 0:00:29]} h4 {[%emt 0:02:46]} 16. Bd3 {[%emt 0:18:01]} Bxd3 {[%emt 0:00:14]} 17. Qxd3 {[%emt 0:00:01]} Bg5 {[%emt 0:01:37]} 18. Bf2 {[%emt 0:08:24]} b6 {[%emt 0:00:57]} 19. Ra3 {[%emt 0:01:50]} f5 {[%emt 0:03:54]} 20. Nc1 {[%emt 0:06:15]} h3 {[%emt 0:01:52]} 21. Ne2 {[%emt 0:02:43]} Rc8 {[%emt 0:16:01]} 22. Rc3 {[%emt 0:03:22]} hxg2 {[%emt 0:00:32]} 23. Kxg2 {[%emt 0:00:30]} Qe8 {[%emt 0:05:15]} 24. Ng3 {[%emt 0:03:08]} Qg6 {[%emt 0:05:21]} 25. Kh1 {[%emt 0:00:52]} Rce8 {[%emt 0:03:14]} 26. Bg1 {[%emt 0:05:50]} Qh7 {[%emt 0:07:39]} 27. Rb3 {[%emt 0:03:32]} Qh3 {[%emt 0:09:33]} 28. Qe2 {[%emt 0:01:39]} Rc8 {[%emt 0:02:06]} 29. Rc3 {[%emt 0:01:01]} Qh4 {[%emt 0:04:34]} 30. Bf2 {[%emt 0:06:05]} Bf4 {[%emt 0:00:45]} 31. Rg1 {[%emt 0:00:27]} Rce8 {[%emt 0:03:22]} 32. Be1 {[%emt 0:03:10]} Qh3 {[%emt 0:04:04]} 33. Qf1 {[%emt 0:08:44]} Qxf1 {[%emt 0:01:43]} 34. Nxf1 {[%emt 0:00:02]} Nc5 {[%emt 0:00:50]} 35. b3 {[%emt 0:00:40]} Kf7 {[%emt 0:01:34]} 36. Ng3 {[%emt 0:07:00]} Rh8 {[%emt 0:00:12]} 37. Rg2 {[%emt 0:00:07]} g6 {[%emt 0:00:37]} 38. Ne2 {[%emt 0:00:24]} Bh6 {[%emt 0:02:01]} 39. Bf2 {[%emt 0:01:06]} Bg7 {[%emt 0:01:08]} 40. Rc1 {[%emt 0:00:34]} e4 {[%emt 0:10:13]} 41. fxe4 {[%emt 0:00:10]} Rxe4 {[%emt 0:00:25]} 42. Ng3 {[%emt 0:02:59]} Rf4 {[%emt 0:01:00]} 43. Ne2 {[%emt 0:01:37]} Rf3 {[%emt 0:00:44]} 44. Bxc5 {[%emt 0:01:55]} bxc5 {[%emt 0:00:06]} 45. Rg3 {[%emt 0:01:17]} Rxg3 {[%emt 0:02:18]} 46. Nxg3 {[%emt 0:00:01]} Re8 {[%emt 0:00:12]} 47. Kg2 {[%emt 0:01:46]} Re3 {[%emt 0:00:11]} 48. Rb1 {[%emt 0:01:06]} Be5 {[%emt 0:00:11]} 49. Kf2 {[%emt 0:00:13]} Rc3 {[%emt 0:00:11]} 50. Nf1 {[%emt 0:00:45]} Rc2+ {[%emt 0:00:28]} 51. Kf3 {[%emt 0:00:05]} g5 {[%emt 0:00:59]} 52. h3 {[%emt 0:00:16]} Rc3+ {[%emt 0:00:04]} 53. Kg2 {[%emt 0:00:04]} Rd3 {[%emt 0:00:20]} 0-1

[Event "1st Bangalore GM-Open-A 2024"]
[Site "Bangalore"]
[Date "2024.01.23"]
[Round "7.36"]
[White "Fronda, Jan Jodilyn"]
[Black "Gonzales, Jayson"]
[Result "1/2-1/2"]
[ECO "B06"]
[WhiteElo "2151"]
[BlackElo "2367"]
[Annotator "RC"]
[PlyCount "146"]
[EventDate "2024.01.20"]
[EventType "swiss"]
[EventCountry "IND"]
[SourceTitle "playchess.com"]
[Source "ChessBase"]
[SourceQuality "1"]
[TimeControl "5400+30"]

1. e4 {[%emt 0:04:20]} g6 {[%emt 0:00:42]} 2. d4 {[%emt 0:00:04]} Bg7 {[%emt 0:00:06]} 3. Nc3 {[%emt 0:00:06]} c6 {[%emt 0:00:47]} 4. Be3 {[%emt 0:00:54]} d6 {[%emt 0:02:07]} 5. g3 {[%emt 0:00:11]} Nd7 {[%emt 0:02:00]} 6. a4 {[%emt 0:00:49]} e5 {[%emt 0:00:54]} 7. Nge2 {[%emt 0:02:21]} Ngf6 {[%emt 0:03:30]} 8. h3 {[%emt 0:00:48]} O-O {[%emt 0:06:23]} 9. Bg2 {[%emt 0:00:30]} exd4 {[%emt 0:05:28]} 10. Bxd4 {[%emt 0:01:37]} Qe7 {[%emt 0:03:44]} 11. O-O {[%emt 0:03:01]} Nc5 {[%emt 0:01:21]} 12. Re1 {[%emt 0:06:12]} a5 {[%emt 0:00:22]} 13. Nf4 {[%emt 0:02:36]} Ncd7 {[%emt 0:18:31]} 14. Qd2 {[%emt 0:04:46]} Ne5 {[%emt 0:01:03]} 15. b3 {[%emt 0:00:40]} Re8 {[%emt 0:02:50]} 16. Rad1 {[%emt 0:01:18]} Qc7 {[%emt 0:09:04]} 17. Kh2 {[%emt 0:04:15]} h5 {[%emt 0:02:09]} 18. Nfe2 {[%emt 0:02:26]} h4 {[%emt 0:03:53]} 19. f4 {[%emt 0:04:32]} hxg3+ {[%emt 0:00:32]} 20. Nxg3 {[%emt 0:00:16]} Ned7 {[%emt 0:00:10]} 21. Qf2 {[%emt 0:04:02]} Nf8 {[%emt 0:13:33]} 22. Kh1 {[%emt 0:11:27]} Ne6 {[%emt 0:02:01]} 23. Bb6 {[%emt 0:02:21]} Qe7 {[%emt 0:01:14]} 24. Nd5 {[%emt 0:08:35]} cxd5 {[%emt 0:10:50]} 25. exd5 {[%emt 0:00:07]} Nxd5 {[%emt 0:00:25]} 26. Rxd5 {[%emt 0:00:46]} f5 {[%emt 0:00:17]} 27. Qd2 {[%emt 0:06:50]} Bd7 {[%emt 0:01:13]} 28. Re3 {[%emt 0:09:37]} Bc6 {[%emt 0:00:39]} 29. Ne2 {[%emt 0:05:38]} Bxd5 {[%emt 0:06:50]} 30. Bxd5 {[%emt 0:00:05]} Qd7 {[%emt 0:00:09]} 31. Nd4 {[%emt 0:05:36]} Bxd4 {[%emt 0:00:47]} 32. Bxd4 {[%emt 0:01:39]} Kh7 {[%emt 0:01:10]} 33. Rxe6 {[%emt 0:01:10]} Rxe6 {[%emt 0:00:17]} 34. Qf2 {[%emt 0:00:04]} Qe7 {[%emt 0:01:09]} 35. Bxe6 {[%emt 0:00:32]} Qxe6 {[%emt 0:00:01]} 36. Qh4+ {[%emt 0:00:07]} Kg8 {[%emt 0:00:06]} 37. Qh8+ {[%emt 0:01:30]} Kf7 {[%emt 0:00:01]} 38. Qxa8 {[%emt 0:00:38]} Qe4+ {[%emt 0:00:06]} 39. Kg1 {[%emt 0:00:04]} Qxd4+ {[%emt 0:00:05]} 40. Kg2 {[%emt 0:00:06]} Qe4+ {[%emt 0:00:50]} 41. Kg3 {[%emt 0:00:05]} Qe3+ {[%emt 0:01:53]} 42. Kg2 {[%emt 0:00:05]} Qe4+ {[%emt 0:00:09]} 43. Kg3 {[%emt 0:00:03]} Qe3+ {[%emt 0:00:45]} 44. Kg2 {[%emt 0:00:05]} Qe2+ {[%emt 0:01:03]} 45. Kg3 {[%emt 0:00:09]} Qe1+ {[%emt 0:00:30]} 46. Kg2 {[%emt 0:00:07]} Qd2+ {[%emt 0:00:28]} 47. Kg1 {[%emt 0:07:16]} Qc1+ {[%emt 0:00:12]} 48. Kg2 {[%emt 0:00:08]} Qxc2+ {[%emt 0:00:08]} 49. Kg1 {[%emt 0:00:03]} Qxb3 {[%emt 0:00:50]} 50. Qxa5 {[%emt 0:01:42]} Qg3+ {[%emt 0:00:12]} 51. Kf1 {[%emt 0:00:49]} Qxf4+ {[%emt 0:00:14]} 52. Kg2 {[%emt 0:00:14]} Qe4+ {[%emt 0:00:18]} 53. Kg1 {[%emt 0:00:39]} f4 {[%emt 0:00:52]} 54. Qc7+ {[%emt 0:00:59]} Ke6 {[%emt 0:00:35]} 55. Qc8+ {[%emt 0:00:28]} Ke5 {[%emt 0:00:17]} 56. Qh8+ {[%emt 0:01:36]} Kd5 {[%emt 0:00:09]} 57. Qc8 {[%emt 0:00:49]} Kd4 {[%emt 0:00:29]} 58. Qh8+ {[%emt 0:00:26]} Kd3 {[%emt 0:01:23]} 59. Qc8 {[%emt 0:01:05]} Ke2 {[%emt 0:00:30]} 60. Qg4+ {[%emt 0:00:09]} Kd2 {[%emt 0:01:20]} 61. Qd7 {[%emt 0:00:31]} Qd4+ {[%emt 0:00:40]} 62. Kg2 {[%emt 0:00:31]} Qd5+ {[%emt 0:00:26]} 63. Kf2 {[%emt 0:00:41]} Qd4+ {[%emt 0:00:03]} 64. Kg2 {[%emt 0:00:02]} Ke1 {[%emt 0:00:35]} 65. Qxb7 {[%emt 0:00:44]} Qf2+ {[%emt 0:00:31]} 66. Kh1 {[%emt 0:00:04]} Qf1+ {[%emt 0:01:00]} 67. Kh2 {[%emt 0:00:02]} Qe2+ {[%emt 0:00:09]} 68. Kg1 {[%emt 0:00:33]} Qe3+ {[%emt 0:00:24]} 69. Kg2 {[%emt 0:00:22]} Qe2+ {[%emt 0:00:42]} 70. Kg1 {[%emt 0:00:05]} f3 {[%emt 0:00:38]} 71. Qb4+ {[%emt 0:00:23]} Kd1 {[%emt 0:00:10]} 72. Qxd6+ {[%emt 0:00:14]} Kc2 {[%emt 0:00:04]} 73. Qxg6+ {[%emt 0:00:05]} Kb3 {[%emt 0:00:18]} 1/2-1/2

[Event "1st Bangalore GM-Open-A 2024"]
[Site "Bangalore"]
[Date "2024.01.23"]
[Round "7.37"]
[White "Liyanage, Ranindu Dilshan"]
[Black "Pujari, Rucha"]
[Result "1-0"]
[ECO "C77"]
[WhiteElo "2366"]
[BlackElo "2181"]
[Annotator "RC"]
[PlyCount "123"]
[EventDate "2024.01.20"]
[EventType "swiss"]
[EventCountry "IND"]
[SourceTitle "playchess.com"]
[Source "ChessBase"]
[SourceQuality "1"]
[TimeControl "5400+30"]

1. e4 {[%emt 0:00:23]} e5 {[%emt 0:00:33]} 2. Nf3 {[%emt 0:00:13]} Nc6 {[%emt 0:00:04]} 3. Bb5 {[%emt 0:00:37]} a6 {[%emt 0:00:21]} 4. Ba4 {[%emt 0:00:10]} Nf6 {[%emt 0:00:07]} 5. Nc3 {[%emt 0:00:30]} d6 {[%emt 0:04:04]} 6. a3 {[%emt 0:07:37]} Be7 {[%emt 0:03:17]} 7. O-O {[%emt 0:03:35]} b5 {[%emt 0:06:53]} 8. Bb3 {[%emt 0:00:06]} Bg4 {[%emt 0:03:10]} 9. h3 {[%emt 0:00:09]} Bxf3 {[%emt 0:10:53]} 10. Qxf3 {[%emt 0:00:15]} Nd4 {[%emt 0:00:07]} 11. Qd1 {[%emt 0:00:05]} Nxb3 {[%emt 0:00:32]} 12. cxb3 {[%emt 0:00:06]} c5 {[%emt 0:01:51]} 13. d3 {[%emt 0:00:14]} h6 {[%emt 0:01:30]} 14. f4 {[%emt 0:04:18]} O-O {[%emt 0:03:23]} 15. Qf3 {[%emt 0:01:39]} b4 {[%emt 0:02:25]} 16. axb4 {[%emt 0:08:04]} cxb4 {[%emt 0:00:03]} 17. Nd1 {[%emt 0:03:18]} d5 {[%emt 0:17:52]} 18. fxe5 {[%emt 0:11:31]} dxe4 {[%emt 0:01:00]} 19. Qg3 {[%emt 0:03:43]} Nh5 {[%emt 0:03:48]} 20. Qg4 {[%emt 0:01:15]} exd3 {[%emt 0:03:06]} 21. Be3 {[%emt 0:13:20]} g6 {[%emt 0:02:27]} 22. Bxh6 {[%emt 0:11:35]} Bc5+ {[%emt 0:04:12]} 23. Ne3 {[%emt 0:04:01]} Qd4 {[%emt 0:14:45]} 24. Qxd4 {[%emt 0:08:16]} Bxd4 {[%emt 0:00:03]} 25. Rad1 {[%emt 0:00:55]} Rfd8 {[%emt 0:14:42]} 26. g4 {[%emt 0:05:00]} Ng3 {[%emt 0:00:28]} 27. Rf3 {[%emt 0:00:05]} Ne4 {[%emt 0:01:04]} 28. Kg2 {[%emt 0:03:16]} Bxe5 {[%emt 0:00:54]} 29. Nc4 {[%emt 0:00:16]} Bh8 {[%emt 0:00:50]} 30. Rfxd3 {[%emt 0:01:19]} Rxd3 {[%emt 0:00:02]} 31. Rxd3 {[%emt 0:00:06]} Nc5 {[%emt 0:00:16]} 32. Rf3 {[%emt 0:00:09]} Rd8 {[%emt 0:00:56]} 33. Bd2 {[%emt 0:02:58]} a5 {[%emt 0:00:06]} 34. Bg5 {[%emt 0:01:23]} Rd3 {[%emt 0:00:55]} 35. Nxa5 {[%emt 0:00:53]} Rxf3 {[%emt 0:00:40]} 36. Kxf3 {[%emt 0:00:05]} Bxb2 {[%emt 0:00:15]} 37. Be7 {[%emt 0:00:19]} Na6 {[%emt 0:00:52]} 38. Ke4 {[%emt 0:00:36]} f6 {[%emt 0:00:28]} 39. Bd6 {[%emt 0:00:24]} Kf7 {[%emt 0:00:07]} 40. Kd5 {[%emt 0:00:06]} f5 {[%emt 0:00:47]} 41. gxf5 {[%emt 0:00:27]} gxf5 {[%emt 0:00:02]} 42. Nc4 {[%emt 0:00:15]} Bc1 {[%emt 0:01:00]} 43. Ne5+ {[%emt 0:04:37]} Kf6 {[%emt 0:00:01]} 44. Nd3 {[%emt 0:00:06]} Bd2 {[%emt 0:00:36]} 45. Kc6 {[%emt 0:00:19]} Be3 {[%emt 0:00:51]} 46. Kb5 {[%emt 0:00:58]} Ke6 {[%emt 0:00:26]} 47. Bh2 {[%emt 0:00:11]} Kd5 {[%emt 0:00:41]} 48. Kxa6 {[%emt 0:00:04]} Kd4 {[%emt 0:00:31]} 49. Nxb4 {[%emt 0:00:06]} Bd2 {[%emt 0:00:04]} 50. Kb5 {[%emt 0:01:48]} f4 {[%emt 0:00:40]} 51. Bg1+ {[%emt 0:01:10]} Kc3 {[%emt 0:00:42]} 52. Ka4 {[%emt 0:00:10]} f3 {[%emt 0:00:32]} 53. Bf2 {[%emt 0:00:44]} Bh6 {[%emt 0:00:18]} 54. Nd5+ {[%emt 0:00:44]} Kd3 {[%emt 0:00:40]} 55. Nf6 {[%emt 0:00:04]} Bf8 {[%emt 0:00:35]} 56. b4 {[%emt 0:00:31]} Ke2 {[%emt 0:00:12]} 57. Ng4 {[%emt 0:00:05]} Kf1 {[%emt 0:00:18]} 58. b5 {[%emt 0:00:35]} Kg2 {[%emt 0:00:02]} 59. h4 {[%emt 0:00:21]} Bd6 {[%emt 0:01:02]} 60. h5 {[%emt 0:00:39]} Bg3 {[%emt 0:00:17]} 61. h6 {[%emt 0:00:52]} Bxf2 {[%emt 0:00:15]} 62. Nxf2 {[%emt 0:00:04]} 1-0